Cogmind - Beta 11.1 *** ADVENTURER MODE // 2022.05.27 @ 12:26:54 Player: EnemyLemon Result: Self-destructed Performance ------------- Evolutions (1) 500 Regions Visited (2) 400 Robots Destroyed (18) 90 Value Destroyed (409) 409 Prototype IDs (0) 0 Alien Tech Used (0) 0 Bonus (0) 0 TOTAL SCORE: 1399 Bonus ------- None Cogmind --------- Core Integrity 351/400 Matter 14/300 Energy 220/250 System Corruption 0% Temperature Cool (99) Movement Walking (120) Location -9/Materials Parts ------- > --- POWER (1) -------- Ion Engine > --- PROPULSION (3) --- Aluminum Leg Aluminum Leg > --- UTILITY (3) ------ Small Storage Unit Structural Scanner ECM Suite > --- WEAPON (2) ------- Beam Rifle Assault Rifle > --- INVENTORY (8) ---- Medium Laser Small Laser Spread Laser Light Assault Rifle Light Assault Rifle Peak State ------------ > --- POWER ------------ Ion Engine > --- PROPULSION ------- Aluminum Leg Aluminum Leg Aluminum Leg > --- UTILITY ---------- Small Storage Unit Structural Scanner ECM Suite > --- WEAPON ----------- Beam Rifle Light Assault Rifle > --- INVENTORY -------- Medium Laser Small Laser Light Assault Rifle Grenade Launcher [Rating: 10] Favorites ----------- Power Ion Engine Engine Ion Engine Propulsion Aluminum Leg Leg Aluminum Leg Utility ECM Suite Device ECM Suite Storage Small Storage Unit Weapon Light Assault Rifle Energy Gun Medium Laser Ballistic Gun Light Assault Rifle Launcher Grenade Launcher Build | -11 -10 -9 ------- Run | Scr Mat Mat Slots Evolved 2 | . . 2 Power . | . . . Propulsion 1 | . . 1 Utility 1 | . . 1 Weapon . | . . . Parts Attached 15 | 5 4 6 Power 2 | 1 . 1 Engine 2 | 1 . 1 Core . | . . . Reactor . | . . . Propulsion 3 | 2 . 1 Treads . | . . . Leg 3 | 2 . 1 Wheel . | . . . Hover . | . . . Flight . | . . . Utility 3 | . 2 1 Device 2 | . 1 1 Storage 1 | . 1 . Processor . | . . . Hackware . | . . . Protection . | . . . Artifact . | . . . Weapon 7 | 2 2 3 Energy Gun 2 | 1 . 1 Energy Cannon . | . . . Ballistic Gun 4 | 1 1 2 Ballistic Cannon . | . . . Launcher 1 | . 1 . Special Weapon . | . . . Impact Weapon . | . . . Slashing Weapon . | . . . Piercing Weapon . | . . . Special Melee Weapon . | . . . Unidentified Prototypes . | . . . Parts Lost 1 | . . 1 Power . | . . . Propulsion 1 | . . 1 Utility . | . . . Weapon . | . . . Highest Loss Streak 1 | . . 1 To Critical Strikes . | . . . Average Slot Usage (%) 93 | . 93 94 Engine 13 | . 14 11 Leg 27 | . 28 27 Device 14 | . 11 22 Storage 10 | . 10 11 Energy Gun 9 | . 10 8 Ballistic Gun 14 | . 15 11 Launcher 1 | . 1 2 Naked Turns . | . . . Heaviest Build 18 | 8 16 18 Greatest Support 30 | 20 20 30 Greatest Overweight (x) . | . . . Average Overweight (x) . | . . . Largest Inventory Capacity 8 | 5 8 8 Average Capacity 7 | 5 7 8 Most Carried 6 | 4 4 6 Average Carried 2 | 1 1 4 Final Capacity 8 | 5 8 8 Final Carried 5 | 1 4 5 Class Distribution -------------------- 70% | Mutant 29% | Infiltrator-Mutant Dominant Class ---------------- Mutant | -10/Materials Infiltrator-Mutant | -9/Materials Resources | -11 -10 -9 ----------- Run | Scr Mat Mat Matter Collected 223 | 61 114 48 Remotely . | . . . Salvage Created 385 | 13 239 133 Parts 31 | 2 21 8 Haulers Intercepted . | . . . Recyclers Shooed . | . . . Parts Field Recycled . | . . . Retrieved Matter . | . . . Parts Self-Destructed . | . . . Prevented . | . . . Kills | -11 -10 -9 ------- Run | Scr Mat Mat Combat Hostiles Destroyed 14 | . 9 5 Guns 10 | . 6 4 AOE 4 | . 3 1 Classes Destroyed 6 | 1 4 1 Worker 1 | . 1 . Tunneler 1 | 1 . . Watcher 2 | . 1 1 Swarmer 5 | . 5 . Grunt 8 | . 4 4 Duelist 1 | . . 1 Best Kill Streak 4 | 1 4 4 Combat Bots Only 4 | . 3 4 Max Kills in Single Turn 2 | 1 2 1 Gunslinging 1 | . 1 . Exploded 1 | . 1 1 Melee . | . . . Uniques/NPCs Destroyed . | . . . Combat | -11 -10 -9 -------- Run | Scr Mat Mat Damage Taken 543 | . 155 388 Core 89 | . 40 49 Absorbed by Shields . | . . . Core Remaining (%) 92 | 100 84 . Volleys Fired 49 | 1 23 25 Largest 2 | 2 2 2 Hottest 76 | 70 70 76 Shots Fired 95 | 2 45 48 Gun 85 | 2 42 41 Cannon . | . . . Launcher 10 | . 3 7 Special . | . . . Kinetic 50 | 1 24 25 Thermal 35 | 1 18 16 Explosive 10 | . 3 7 Electromagnetic . | . . . Robot Hit Streak 10 | 1 10 7 Robot Miss Streak 2 | . 2 2 Penetration Max . | . . . Secondary Targets 4 | . 3 1 Max Gunslinging Chain 1 | . 1 1 Shots Hit Robots 65 | 1 30 34 Core Hits 31 | 1 15 15 Critical Kills . | . . . Critical Parts Destroyed . | . . . Critical Strikes . | . . . Melee Attacks . | . . . Impact . | . . . Slashing . | . . . Piercing . | . . . Sneak Attacks . | . . . Combat Hostiles . | . . . Follow-up Attacks . | . . . Damage Inflicted 1144 | 13 479 652 Guns 630 | 13 284 333 Cannons . | . . . Explosions 514 | . 195 319 Melee . | . . . Ramming . | . . . Kinetic 292 | . 121 171 Thermal 338 | 13 163 162 Explosive 514 | . 195 319 Electromagnetic . | . . . Impact . | . . . Slashing . | . . . Piercing . | . . . Highest Corruption . | . . . Average Corruption . | . . . Corruption Purged . | . . . Corruption Blocked . | . . . Overload Shots . | . . . Overflow Damage . | . . . Projectiles . | . . . Explosions . | . . . Melee . | . . . Knockbacks . | . . . Impact . | . . . Kinetic . | . . . Secondary . | . . . Self-Inflicted Damage 82 | . . 82 Shots 3 | . . 3 Rammed . | . . . Targets Rammed . | . . . Kicked . | . . . Crushed . | . . . Highest Temperature 157 | 30 80 157 Average Temperature 39 | 18 29 49 Received Heat Transfer 237 | . 42 195 Siege Activations . | . . . Robots Corrupted . | . . . Combat Hostiles . | . . . Parts Fried . | . . . Impact Corruptions . | . . . Robots Melted . | . . . Combat Hostiles . | . . . Parts Melted 2 | . 1 1 Heat Transferred 925 | 37 481 407 Parts Sabotaged . | . . . Parts Stolen . | . . . Parts Stripped . | . . . Power Chain Reactions . | . . . Missiles Intercepted . | . . . Alert | -11 -10 -9 ------- Run | Scr Mat Mat Peak Influence 312 | 5 209 312 Initial 73 | . 2 73 Average 136 | . 107 224 Maximum Alert Level 1 | . 1 1 Low Security (%) 70 | 100 90 23 Level 1 29 | . 9 76 Level 2 . | . . . Level 3 . | . . . Level 4 . | . . . Level 5 . | . . . High Security . | . . . Max Security . | . . . Squads Dispatched 1 | . 1 . Investigation 1 | . 1 . Extermination . | . . . Reinforcement . | . . . Assault . | . . . Garrison . | . . . Intercept . | . . . Searches Triggered . | . . . Construction Impeded . | . . . Haulers Reinforced . | . . . Active Scanning Responses . | . . . Cargo Convoy Interrupts . | . . . Stealth | -11 -10 -9 --------- Run | Scr Mat Mat Distress Signals 1 | . 1 . Communications Jammed . | . . . Distress Signals . | . . . Times Spotted 29 | . 18 11 Peak Tracking Total 6 | . 6 4 Tactical Retreats 4 | . 3 1 Traps | -11 -10 -9 ------- Run | Scr Mat Mat Traps Triggered 1 | . 1 . Indirectly . | . . . Trap Hack Attempts . | . . . Triggered . | . . . Disarmed . | . . . Reprogrammed . | . . . Reused . | . . . Traps Extracted . | . . . Installed . | . . . Triggered . | . . . Machines | -11 -10 -9 ---------- Run | Scr Mat Mat Machines Disabled . | . . . Max in Single Turn . | . . . Machines Sabotaged . | . . . Garrisons Compromised . | . . . Overloaded Fab Kills . | . . . Hacking | -11 -10 -9 --------- Run | Scr Mat Mat Machines Accessed . | . . . Terminals . | . . . Fabricators . | . . . Repair Stations . | . . . Recycling Units . | . . . Scanalyzers . | . . . Garrison Access . | . . . Total Hacks . | . . . Successful . | . . . Failed . | . . . Catastrophic . | . . . Database Lockouts . | . . . Manual . | . . . Terminals . | . . . Fabricators . | . . . Repair Stations . | . . . Recycling Units . | . . . Scanalyzers . | . . . Garrison Access . | . . . Terminal Hacks . | . . . Fabricator Hacks . | . . . Repair Station Hacks . | . . . Recycling Unit Hacks . | . . . Scanalyzer . | . . . Garrison Access Hacks . | . . . Unauthorized Hacks . | . . . Terminals . | . . . Fabricators . | . . . Repair Stations . | . . . Recycling Units . | . . . Scanalyzers . | . . . Garrison Access . | . . . Data Cores Recovered . | . . . Used . | . . . Hacking Detections . | . . . Full Trace Events . | . . . Feedback Events . | . . . Feedback Blocked . | . . . Robot Schematics Acquired . | . . . Robots Built . | . . . Authchips . | . . . Time . | . . . Total Robot Build Rating . | . . . Part Schematics Acquired . | . . . Parts Built . | . . . Authchips . | . . . Time . | . . . Total Part Build Rating . | . . . Parts Repaired . | . . . Time . | . . . Parts Recycled . | . . . Recycled Matter . | . . . Retrieved Matter . | . . . Retrieved Components . | . . . Parts Scanalyzed . | . . . Part Schematics Acquired . | . . . Parts Damaged . | . . . Bothacking | -11 -10 -9 ------------ Run | Scr Mat Mat Used RIF Installer . | . . . Robots Hacked . | . . . Non-combat . | . . . Combat . | . . . Robot Hacks Applied . | . . . Relay Couplers Released . | . . . Fabnet Peak Effective % . | . . . Robots Rewired . | . . . Allies Hacked . | . . . Hacks Repelled . | . . . Allies | -11 -10 -9 -------- Run | Scr Mat Mat Total Allies . | . . . Largest Group . | . . . Highest-Rated Group . | . . . Highest-Rated Ally . | . . . Total Orders . | . . . Ally Attacks . | . . . Total Damage . | . . . Kills . | . . . Allies Corrupted . | . . . Allies Melted . | . . . Intel | -11 -10 -9 ------- Run | Scr Mat Mat Robot Analysis Total . | . . . Derelict Logs Recovered . | . . . Drone Launches . | . . . Drone Recoveries . | . . . Exploration | -11 -10 -9 ------------- Run | Scr Mat Mat Turns Passed 846 | 52 535 259 Spaces Moved 498 | 35 317 146 Core 5 | 5 . . Treads . | . . . Legs 493 | 30 317 146 Wheels . | . . . Hover . | . . . Flight . | . . . Fastest Speed 50 | 50 120 120 Average Speed 119 | 110 120 120 Slowest Speed 120 | 120 120 120 Overloaded Moves . | . . . Propulsion Burnouts . | . . . Robots Hopped . | . . . Cave-ins Triggered . | . . . Exploration Rate (%) 20 | 3 33 24 Regions Visited 2 Branch Regions . Pre-discovered Areas . | . . . Known Exits Taken . | . . . Unknown Exits Taken 2 | 1 1 . Scrap Searched . | . . . Spaces Dug . | . . . Terrain Destroyed 47 | . 18 29 Melee . | . . . Projectile . | . . . AOE 47 | . 18 29 Terrain Rammed . | . . . Walls Destroyed . | . . . Machines Disabled . | . . . Actions | -11 -10 -9 --------- Run | Scr Mat Mat Total 660 | 46 430 184 Wait 82 | . 82 . Move 496 | 34 316 146 Hop . | . . . Pick Up 16 | 6 5 5 Fast Attach . | . . . Attach 9 | 5 2 2 Detach . | . . . Swap 6 | . 2 4 Drop 2 | . . 2 Fire 49 | 1 23 25 Melee . | . . . Ram . | . . . Kick . | . . . Crush . | . . . Escape Stasis . | . . . Rewire . | . . . Trap . | . . . Miscellaneous . | . . . Route ------- -11/Scrapyard -10/Materials -9/Materials History --------- Turn | Location | Event 17 | -11/Scrapyard | Discovered new exit (range 15) 53 | -11/Scrapyard | Entered Materials 303 | -10/Materials | Build established: Mutant 511 | -10/Materials | Discovered new exit (range 15) 588 | -10/Materials | Entered another Materials area 588 | -9/Materials | Evolved 2 slots: Propulsion x1, Utility x1 847 | -9/Materials | Self-destructed Last Messages --------------- 00732_ K-01 Serf collects debris. 00739_ Acquired Spread Laser. 00741_ K-01 Serf collects debris. 00741_ Acquired Assault Rifle. 00804_ Terminal disabled. 00817_ K-01 Serf collects debris. 00833_ K-01 Serf cleans the Fusion Modulator. 00835_ W-16 Scout destroyed. 00835_ K-01 Serf cleans the Terminal. 00835_ K-01 Serf collects debris. 00836_ K-01 Serf cleans the Terminal. 00838_ Dropped Grenade Launcher. 00839_ Aluminum Leg destroyed. 00840_ K-01 Serf cleans the Fusion Modulator. 00840_ K-01 Serf collects debris. 00843_ K-01 Serf cleans the Terminal. 00843_ K-01 Serf collects debris. 00844_ G-34 Mercenary destroyed. 00845_ R-06 Scavenger collects Ion Engine. 00846_ K-01 Serf collects debris. Map ----- +----------------------------------------------------+ | ?????????????????????????????????????????????????? | | ?????????????????????????????????????????????????? | | ?????????????????????????????????????????????????? | | ?????????????????????????????????????????????????? | | ?????????????????????????????????????????????????? | | ?????????????????????????????????????????????????? | | ?????????????????????????????????????????????????? | | ?????????????????????????????????????????????????? | | ?????????????????????????????????????????????????? | | ?????????####### ????????????????????????? | | ?????????################????????????????????????? | | ?????????## ##????????????????????????? | | ?????????## """ """ ##????????????????????????? | | ?????????## """"""""" ##????????????????????????? | | ?????????## """"" " ##????????????????????????? | | ???## ???## ##????????????????????????? | | ??### ???########+######## ??????????????????????? | | ??### ? ####### ####### ??????????????????????? | | #### ####### ## # ??????????????????????? | | ##### " + ## # ??????????????????????? | | # "T ####### ## ##??????????????????????? | | # "? ####### ## ##??????????????????????? | | # ###### # k ############????????????? | | ########### # " !############????????????? | | + T + To # gr##????????????? | | # ######## # " |@] ! % + ????????? | | #+### ########! # Y # %!u ##????????????? | | ####??############# k ##????????????? | | ?? / """ """ ##????????????? | | ###?????????????????""" """ ##????????????? | | """ ###??????????????????"" """???????????????? | | """ ##??????????????????? ???????????????? | | """ ##???????????????????+#####???????????????? | | ##??????????????????? ???????????????? | | ##????????????????????????????????????????? | | ##+####????????????????????????????????????????? | | ## ????????????????????????????????????????? | | ## ?????????????????????????????????????????????? | | ##??????????????????????????????????????????????? | | ##??????????????????????????????????????????????? | | ##??????????????????????????????????????????????? | | # ?????????????????????????????????????????????? | | ##?????????????????????????????????????????????? | | ? ##?????????????????????????????????????????????? | | ? ##?????????????????????????????????????????????? | | ?????????????????????????????????????????????????? | | ?????????????????????????????????????????????????? | | ##???????????????????????????????????????????????? | | ##???????????????????????????????????????????????? | | ##???????????????????????????????????????????????? | +----------------------------------------------------+ Best States ------------- Heat Dissipation 28 Energy Generation 10 Energy Capacity 250 Matter Stores 146 Matter Capacity 300 Sight Range 16 Terrain Scan Density 10 ECM Strength 1 Resistance: KI 20 Resistance: TH 20 Resistance: EX 20 Resistance: EM 20 Resistance: I 20 Resistance: S 20 Resistance: P 20 Evasion (%) 55 Offensive Hacking 10 Item Schematics ----------------- None Robot Schematics ------------------ None Fabricated ------------ Nothing Alien Tech Used ----------------- None Achievements -------------- None Challenges ------------ None Game ------ Seed GatlingThermalCycler Manual? 0 Play Time 00:15:19 Cumulative 1.3 hours Start 2022.05.27 @ 12:12:21 End 2022.05.27 @ 12:26:54 Sessions 1 Manual Loads 0 Difficulty Adventurer Special Mode None Game No. 3 Rogue 0 Adventurer 3 Explorer 0 Win Type - Total 0 Types 0/0/0/0/0/0/0/0/0 Lore% 0 Gallery% 5 Achievement% 3 Wizard Run 0 Options --------- ASCII 0 Keyboard 0 Movement Mouse Keybinds 0 Fullscreen 1 Font 36/Smallcaps Map View 76x50 Tactical HUD 1 Map Filters NONE Filters NONE Steam 1 RUN: 59f17531-2831-4bbd-bab7-36fde7901b61